Cogmind - Beta 10.1 @@@ ROGUE MODE // 2021.07.14 @ 14:54:41 // Winter2019/RPGLIKE Player: Farfid Result: Destroyed by G-34 Mercenary with Small Laser Performance ------------- Evolutions (1) 500 Regions Visited (3) 600 Robots Destroyed (35) 175 Value Destroyed (633) 633 Prototype IDs (2) 40 Alien Tech Used (0) 0 Bonus (44) 44 TOTAL SCORE: 1992 Bonus ------- High Alert Combat Kills 44 Cogmind --------- Core Integrity 0/1000 Matter 160/350 Energy 265/265 System Corruption 1% Temperature Cool (6) Movement Rolling (90) Ox1 Location -9/Materials Parts ------- > --- POWER (1) -------- Improved Ion Engine > --- PROPULSION (2) --- Wheel > --- UTILITY (1) ------ (None) > --- WEAPON (2) ------- Heavy Assault Rifle Bore Cannon > --- INVENTORY (2) ---- Blade Trap Blade Trap Peak State ------------ > --- POWER ------------ Improved Ion Engine > --- PROPULSION ------- Wheel Wheel > --- UTILITY ---------- (None) > --- WEAPON ----------- Heavy Assault Rifle Bore Cannon > --- INVENTORY -------- Blade Trap Blade Trap [Rating: 11] Favorites ----------- Power Ion Engine Engine Ion Engine Propulsion Wheel Wheel Wheel Utility None Weapon Heavy Assault Rifle Ballistic Gun Heavy Assault Rifle Ballistic Cannon Bore Cannon Build | -11 -10 -10 -9 ------- Run | Scr Mat Min Mat Slots Evolved 2 | 2 . . . Power . | . . . . Propulsion 1 | 1 . . . Utility . | . . . . Weapon 1 | 1 . . . Parts Attached 18 | 6 2 4 6 Power 3 | 1 . 1 1 Engine 3 | 1 . 1 1 Core . | . . . . Reactor . | . . . . Propulsion 6 | 2 . 2 2 Treads . | . . . . Leg . | . . . . Wheel 6 | 2 . 2 2 Hover . | . . . . Flight . | . . . . Utility . | . . . . Device . | . . . . Storage . | . . . . Processor . | . . . . Hackware . | . . . . Protection . | . . . . Artifact . | . . . . Weapon 9 | 3 2 1 3 Energy Gun . | . . . . Energy Cannon . | . . . . Ballistic Gun 7 | 3 2 . 2 Ballistic Cannon 2 | . . 1 1 Launcher . | . . . . Special Weapon . | . . . . Impact Weapon . | . . . . Slashing Weapon . | . . . . Piercing Weapon . | . . . . Special Melee Weapon . | . . . . Unidentified Prototypes . | . . . . Parts Lost 2 | . . 1 1 Power . | . . . . Propulsion 2 | . . 1 1 Utility . | . . . . Weapon . | . . . . Highest Loss Streak 1 | . . 1 1 Average Slot Usage (%) 78 | . 83 73 81 Engine 15 | . 16 14 16 Wheel 29 | . 33 25 32 Ballistic Gun 24 | . 33 26 15 Ballistic Cannon 8 | . . 5 16 Naked Turns . | . . . . Heaviest Build 19 | 9 11 17 19 Greatest Support 25 | 20 20 25 25 Greatest Overweight (x) 1 | . . 1 1 Average Overweight (x) . | . . . . Largest Inventory Capacity 2 | . . 2 2 Average Capacity 1 | . . 1 2 Most Carried 2 | . . 2 2 Average Carried 1 | . . 1 2 Final Capacity 2 | . . 2 2 Final Carried 2 | . . 2 2 Class Distribution -------------------- 80% | Mutant 19% | Scavenger-Mutant Dominant Class ---------------- Mutant | -10/Materials Mutant | -10/Mines Scavenger-Mutant | -9/Materials Resources | -11 -10 -10 -9 ----------- Run | Scr Mat Min Mat Matter Collected 735 | 229 150 126 230 Remotely . | . . . . Salvage Created 708 | . 212 184 312 Parts 52 | . 13 16 23 Haulers Intercepted . | . . . . Recyclers Shooed 1 | . . . 1 Parts Field Recycled . | . . . . Retrieved Matter . | . . . . Parts Self-Destructed . | . . . . Prevented . | . . . . Kills | -11 -10 -10 -9 ------- Run | Scr Mat Min Mat Combat Hostiles Destroyed 33 | . 8 12 13 Guns 25 | . 8 11 6 Cannons 3 | . . 1 2 AOE 5 | . . . 5 Classes Destroyed 6 | . 2 2 2 Worker 2 | . . 2 . Swarmer 15 | . 6 3 6 Grunt 8 | . 2 2 4 Brawler 1 | . . . 1 Sentry 2 | . . . 2 Assembled 7 | . . 7 . Best Kill Streak 7 | . 4 7 6 Combat Bots Only 7 | . 4 7 6 Max Kills in Single Turn 5 | . 2 2 5 Gunslinging 1 | . 1 . . Exploded 5 | . . . 5 Melee . | . . . . Uniques/NPCs Destroyed . | . . . . Combat | -11 -10 -10 -9 -------- Run | Scr Mat Min Mat Damage Taken 1876 | . 363 677 836 Core 1514 | . 285 561 668 Absorbed by Shields . | . . . . Redirected to Core 1177 | . 242 401 534 Core Remaining (%) 72 | 100 . 45 . Volleys Fired 72 | . 23 25 24 Largest 2 | . 2 2 2 Hottest 80 | . 46 80 80 Shots Fired 139 | . 46 50 43 Gun 109 | . 46 44 19 Cannon 30 | . . 6 24 Launcher . | . . . . Special . | . . . . Kinetic 139 | . 46 50 43 Thermal . | . . . . Explosive . | . . . . Electromagnetic . | . . . . Robot Hit Streak 10 | . 10 8 7 Robot Miss Streak 3 | . 3 3 2 Penetration Max 1 | . . . 1 Secondary Targets 3 | . 1 2 . Max Gunslinging Chain 1 | . 1 1 . Shots Hit Robots 81 | . 28 31 22 Core Hits 48 | . 10 23 15 Critical Hits 6 | . . 1 5 Critical Kills 2 | . . 1 1 Critical Parts Destroyed 4 | . . . 4 Melee Attacks . | . . . . Impact . | . . . . Slashing . | . . . . Piercing . | . . . . Sneak Attacks . | . . . . Combat Hostiles . | . . . . Follow-up Attacks . | . . . . Damage Inflicted 1988 | . 363 529 1096 Guns 1058 | . 363 500 195 Cannons 238 | . . 29 209 Explosions 655 | . . . 655 Melee . | . . . . Ramming 37 | . . . 37 Kinetic 1296 | . 363 529 404 Thermal . | . . . . Explosive 655 | . . . 655 Electromagnetic . | . . . . Impact . | . . . . Slashing . | . . . . Piercing . | . . . . Highest Corruption 1 | . . . 1 Average Corruption 1 | . . . 1 Corruption Purged . | . . . . Effects 1 | . . . 1 Weapon Failures 1 | . . . 1 Overload Shots . | . . . . Overflow Damage 91 | . . . 91 Projectiles . | . . . . Explosions 91 | . . . 91 Melee . | . . . . Knockbacks . | . . . . Impact . | . . . . Kinetic . | . . . . Secondary . | . . . . Self-Inflicted Damage 166 | . . . 166 Shots 2 | . . . 2 Rammed 9 | . . . 9 Targets Rammed 9 | . . . 9 Kicked . | . . . . Crushed . | . . . . Highest Temperature 18 | . 4 18 . Average Temperature 8 | . 4 9 . Received Heat Transfer 621 | . 48 369 204 Siege Activations . | . . . . Robots Corrupted . | . . . . Combat Hostiles . | . . . . Parts Fried . | . . . . Impact Corruptions . | . . . . Robots Melted . | . . . . Combat Hostiles . | . . . . Parts Melted . | . . . . Heat Transferred . | . . . . Parts Sabotaged . | . . . . Parts Stolen . | . . . . Parts Stripped . | . . . . Power Chain Reactions . | . . . . Missiles Intercepted . | . . . . Alert | -11 -10 -10 -9 ------- Run | Scr Mat Min Mat Peak Influence 544 | . 248 231 544 Initial 96 | . . 96 89 Average 177 | . 87 151 289 Maximum Alert Level 2 | . 1 1 2 Low Security (%) 67 | 100 86 87 24 Level 1 30 | . 13 12 69 Level 2 2 | . . . 6 Level 3 . | . . . . Level 4 . | . . . . Level 5 . | . . . . High Security . | . . . . Max Security . | . . . . Squads Dispatched 3 | . 1 . 2 Investigation 1 | . 1 . . Extermination . | . . . . Reinforcement 2 | . . . 2 Assault . | . . . . Garrison . | . . . . Intercept . | . . . . Construction Impeded . | . . . . Haulers Reinforced . | . . . . Stealth | -11 -10 -10 -9 --------- Run | Scr Mat Min Mat Distress Signals 1 | . 1 . . Communications Jammed . | . . . . Distress Signals . | . . . . Times Spotted 50 | . 11 21 18 Peak Tracking Total 13 | . 4 13 7 Tactical Retreats 7 | . . 5 2 Traps | -11 -10 -10 -9 ------- Run | Scr Mat Min Mat Traps Triggered 4 | . 1 . 3 Indirectly . | . . . . Trap Hack Attempts . | . . . . Triggered . | . . . . Disarmed . | . . . . Reprogrammed . | . . . . Reused . | . . . . Traps Extracted . | . . . . Installed 3 | . . 3 . Triggered . | . . . . Machines | -11 -10 -10 -9 ---------- Run | Scr Mat Min Mat Machines Disabled 7 | . . 1 6 Max in Single Turn 2 | . . 1 2 Machines Sabotaged . | . . . . Garrisons Compromised . | . . . . Overloaded Fab Kills . | . . . . Fab Network Shutdowns . | . . . . Hacking | -11 -10 -10 -9 --------- Run | Scr Mat Min Mat Machines Accessed 2 | . 2 . . Terminals 1 | . 1 . . Fabricators . | . . . . Repair Stations . | . . . . Recycling Units 1 | . 1 . . Scanalyzers . | . . . . Garrison Access . | . . . . Total Hacks 6 | . 6 . . Successful 3 | . 3 . . Failed 3 | . 3 . . Catastrophic . | . . . . Database Lockouts . | . . . . Manual 4 | . 4 . . Terminals 5 | . 5 . . Fabricators . | . . . . Repair Stations . | . . . . Recycling Units 1 | . 1 . . Scanalyzers . | . . . . Garrison Access . | . . . . Terminal Hacks 2 | . 2 . . Prototype ID Bank 1 | . 1 . . Branch Access Points 1 | . 1 . . Fabricator Hacks . | . . . . Repair Station Hacks . | . . . . Recycling Unit Hacks . | . . . . Scanalyzer . | . . . . Garrison Access Hacks . | . . . . Unauthorized Hacks 1 | . 1 . . Terminals . | . . . . Fabricators . | . . . . Repair Stations . | . . . . Recycling Units 1 | . 1 . . Tunnel 1 | . 1 . . Scanalyzers . | . . . . Garrison Access . | . . . . Data Cores Recovered . | . . . . Used . | . . . . Hacking Detections 1 | . 1 . . Full Trace Events . | . . . . Feedback Events . | . . . . Feedback Blocked . | . . . . Robot Schematics Acquired . | . . . . Robots Built . | . . . . Matter . | . . . . Time . | . . . . Total Robot Build Rating . | . . . . Part Schematics Acquired . | . . . . Parts Built . | . . . . Matter . | . . . . Time . | . . . . Total Part Build Rating . | . . . . Parts Repaired . | . . . . Time . | . . . . Parts Recycled . | . . . . Recycled Matter . | . . . . Retrieved Matter . | . . . . Retrieved Components . | . . . . Parts Scanalyzed . | . . . . Part Schematics Acquired . | . . . . Parts Damaged . | . . . . Bothacking | -11 -10 -10 -9 ------------ Run | Scr Mat Min Mat Used RIF Installer . | . . . . Robots Hacked . | . . . . Non-combat . | . . . . Combat . | . . . . Robot Hacks Applied . | . . . . Relay Couplers Released . | . . . . Robots Rewired . | . . . . Allies Hacked . | . . . . Hacks Repelled . | . . . . Allies | -11 -10 -10 -9 -------- Run | Scr Mat Min Mat Total Allies . | . . . . Largest Group . | . . . . Highest-Rated Group . | . . . . Highest-Rated Ally . | . . . . Total Orders . | . . . . Ally Attacks . | . . . . Total Damage . | . . . . Kills . | . . . . Allies Corrupted . | . . . . Allies Melted . | . . . . Intel | -11 -10 -10 -9 ------- Run | Scr Mat Min Mat Robot Analysis Total . | . . . . Derelict Logs Recovered 2 | . . 2 . Drone Launches . | . . . . Drone Recoveries . | . . . . Exploration | -11 -10 -10 -9 ------------- Run | Scr Mat Min Mat Turns Passed 899 | 33 191 381 294 Spaces Moved 683 | 31 134 318 200 Core 3 | 1 . . 2 Treads . | . . . . Legs . | . . . . Wheels 680 | 30 134 318 198 Hover . | . . . . Flight . | . . . . Fastest Speed 50 | 50 80 80 50 Average Speed 81 | 79 80 83 80 Slowest Speed 100 | 80 80 90 100 Overloaded Moves . | . . . . Propulsion Burnouts . | . . . . Robots Hopped . | . . . . Cave-ins Triggered . | . . . . Exploration Rate (%) 26 | 2 31 52 20 Regions Visited 3 Branch Regions 1 Pre-discovered Areas 2 | . 1 1 . Known Exits Taken 1 | . 1 . . Unknown Exits Taken 2 | 1 . 1 . Scrap Searched . | . . . . Spaces Dug . | . . . . Terrain Destroyed 120 | . . 3 117 Melee . | . . . . Projectile 18 | . . 3 15 AOE 102 | . . . 102 Terrain Rammed . | . . . . Walls Destroyed . | . . . . Machines Disabled . | . . . . Actions | -11 -10 -10 -9 --------- Run | Scr Mat Min Mat Total 880 | 37 172 383 288 Wait 62 | . 12 14 36 Move 680 | 30 133 317 200 Hop . | . . . . Pick Up 2 | . . 2 . Fast Attach 12 | 5 . 3 4 Attach . | . . . . Detach . | . . . . Swap 6 | 1 2 1 2 Drop 7 | 1 2 2 2 Fire 72 | . 23 25 24 Melee . | . . . . Ram 9 | . . . 9 Kick . | . . . . Crush . | . . . . Escape Stasis . | . . . . Rewire . | . . . . Trap 3 | . . 3 . Miscellaneous 27 | . . 16 11 Route ------- -11/Scrapyard -10/Materials -10/Mines -9/Materials History --------- Turn | Location | Event 1 | -11/Scrapyard | Upgraded with Propulsion slot (x1) 1 | -11/Scrapyard | Upgraded with Weapon slot (x1) 13 | -11/Scrapyard | Discovered new exit (range 16) 34 | -11/Scrapyard | Entered Materials 80 | -10/Materials | Identified exit to Mines 225 | -10/Materials | Entered Mines 227 | -10/Mines | Reached level 2 262 | -10/Mines | Discovered new exit (range 4) 287 | -10/Mines | Received a Rocket Launcher from a helpful Derelict 302 | -10/Mines | Learned location of Storage (-7) 303 | -10/Mines | Learned Materials emergency access door positions 312 | -10/Mines | Build established: Mutant 349 | -10/Mines | Found a hidden stash of uninstalled traps 353 | -10/Mines | Assembled infested the area 358 | -10/Mines | Assisted by a Guerilla fighting off Assembled 398 | -10/Mines | Core integrity fell below 50% 415 | -10/Mines | Core integrity fell below 20% 451 | -10/Mines | Destroyed 7 combat bots 606 | -10/Mines | Entered Materials 607 | -9/Materials | Core integrity fell below 50% 608 | -9/Materials | Reached level 3 685 | -9/Materials | Reached level 4 883 | -9/Materials | Core integrity fell below 20% 900 | -9/Materials | Destroyed by G-34 Mercenary with Small Laser Last Messages --------------- 00882_ B-36 Bruiser destroyed. 00882_ Destroyed Sml. Laser. 00882_ Nuclear Reactor explodes. 00882_ Destroyed Sml. Laser. 00882_ G-34 Mercenary destroyed. 00883_ The unstable cave ceiling collapses. 00884_ Acquired 64 matter. 00887_ Acquired 25 matter. 00888_ Acquired 46 matter. 00890_ Acquired 42 matter. 00891_ HV Slug penetrates Y-45 Defender. 00891_ Y-45 Defender suffers critical hit. 00891_ Destroyed Beam Rifle. 00893_ U-05 Engineer lays Concrete. 00894_ System corrupted: Hvy. Assault Rifle jammed. 00894_ Y-45 Defender destroyed. 00895_ U-05 Engineer lays Concrete. 00897_ U-05 Engineer builds a Wall. 00897_ HV Slug penetrates Wall. 00900_ Wheel destroyed. Map ----- +----------------------------------------------------+ | ????????????????????????????????????# ???# | | ????????????????????????????????????# ???# | | ????????????????????????????????????# ## | | ????????????????????????????????????# + | | ???????????????????????????? ???????# #???# | | ???????????????????????????? ???????# #???# | | ??????????????????????????##"+###???# ##########+# | | ???????????????????????#### ##### | | ??????????????????????? = ^ | | ????????????????????? T ^ | | ????????????????????? = | | ??????????????????????????# ###+########## *= | | ???????????????????######### ## ##????## [* | | ?????????????+?????# [ * # ## """ # ###### | | ???????????????????# # ## "T # # | | ???????????????????+ !!! + ## """ !# """ # | | ???????????????????# !!! # + # """ # | | ???????????????????# !Y! #g u## # """ # | | ???????????????????# ## # ####### #* | | ????????????????????## # ####??# """ # = | | ????????????????????# % #??# """ +![ | | ????????????????????# #??# """ # | | ???????????????????## """ #??# #### | | ???????????????????# """ #??# #??# | | ???????????????????## % ! """ #??# #??# | | ???????????????????# @=*= #??# ???# | | ???????????????????### ####??#######???? | | | | | | | | | | | | | | | | | | | | | | | | | | | | | | | | | | | | | | | | | | | | | | | +----------------------------------------------------+ Best States ------------- Heat Dissipation 43 Energy Generation 12 Energy Capacity 265 Matter Stores 300 Matter Capacity 350 Sight Range 16 Robot Scan Range 2 Terrain Scan Density 10 Resistance: KI 15 Resistance: TH 15 Evasion (%) 44 Item Schematics ----------------- None Robot Schematics ------------------ None Fabricated ------------ Nothing Alien Tech Used ----------------- None Achievements -------------- None Challenges ------------ None RPGLIKE | -11 -10 -10 -9 --------- Run | Scr Mat Min Mat Levels Raised 3 | . . 1 2 XP Earned 8836 | 3000 1090 1175 3571 XP Spent 5790 | 2975 . 1515 1300 Upgrades 26 | 10 . 13 3 Propulsion Slot 1 | 1 . . . Weapon Slot 1 | 1 . . . Core Integrity 8 | 1 . 7 . Heat Dissipation 3 | 1 . 2 . Matter Storage 1 | . . . 1 Mass Support 1 | . . 1 . Inventory Capacity 2 | . . 2 . Sensor Range 1 | . . 1 . Ranged Accuracy 2 | 2 . . . KI Resistance % 3 | 2 . . 1 TH Resistance % 3 | 2 . . 1 Protomatter Created 197 | . . 115 82 Integrity Restored 510 | . . 297 213 Core 510 | . . 297 213 Protomatter Decayed 49 | . . 38 11 Game ------ Seed LobotomyMetafiberMapper Manual? 0 Play Time 00:12:00 Cumulative 588.0 hours Start 2021.07.14 @ 14:45:40 End 2021.07.14 @ 14:54:41 Sessions 1 Manual Loads 0 Difficulty Rogue Special Mode Winter2019/RPGLIKE Game No. 208 Rogue 208 Adventurer 0 Explorer 0 Win Type - Total 44 Types 25/2/7/4/3/0/2/0/1 Lore% 91 Gallery% 94 Achievement% 85 Wizard Run 0 Options --------- ASCII 0 Keyboard 0 Movement Mouse Keybinds 0 Fullscreen 2 Font 12/Smallcaps Map View 83x54 Tactical HUD 1 Map Filters NONE Filters NONE Steam X RUN: fc9685bf-289e-4aec-aef6-3252df9c72ac